fUST/lending_fUST_20240818
["ID","MTS","AMOUNT","RATE_DAILY","PERIOD"]
[335197449,1723972253476,-511.3471811,0.0001754,2]
[335197450,1723972253486,-513.1321398,0.0001754,2]
[335197451,1723972253497,-501.15990719,0.0001754,2]
[335197452,1723972253507,-500.0,0.0001754,2]
[335197453,1723972253517,-510.71326632,0.0001754,2]
[335197454,1723972253527,-500.0,0.0001754,2]
[335197455,1723972253537,-500.0,0.0001754,2]
[335197456,1723972253546,-511.01685736,0.0001754,2]
[335197457,1723972253555,-210.28986932,0.0001754,2]
[335197458,1723972253564,-500.0,0.0001754,2]
[335197459,1723972253574,-469.84670545,0.0001754,2]
[335197460,1723972253583,-500.0,0.0001754,2]
[335197461,1723972253593,-500.0,0.0001754,2]
[335197462,1723972253602,-504.84887392,0.0001754,2]
[335197463,1723972253611,-500.0,0.0001754,2]
[335197464,1723972253621,-261.95080758,0.0001754,2]
[335197465,1723972253630,-500.0,0.0001754,2]
[335197466,1723972253640,-503.5388865,0.0001754,2]
[335197467,1723972253650,-530.88077677,0.0001754,2]
[335197468,1723972253659,-507.46129466,0.0001754,2]
[335197469,1723972253669,-500.0,0.0001754,2]
[335197470,1723972253679,-503.1800564,0.0001754,2]
[335197471,1723972253689,-500.0,0.0001754,2]
[335197472,1723972253699,-500.0,0.0001754,2]
[335197473,1723972253708,-500.0,0.0001754,2]
[335197474,1723972253718,-505.44072963,0.0001754,2]
[335197475,1723972253727,-509.8537679,0.0001754,2]
[335197476,1723972253736,-500.0,0.0001754,2]
[335197477,1723972253745,-500.0,0.0001754,2]
[335197478,1723972253755,-505.25,0.0001754,2]
[335197479,1723972253764,-500.0,0.0001754,2]
[335197480,1723972253775,-500.0,0.0001754,2]
[335197481,1723972253785,-962.99,0.0001754,2]
[335197482,1723972253794,-514.57750072,0.0001754,2]
[335197483,1723972253805,-500.0,0.0001754,2]
[335197484,1723972253815,-505.48558456,0.0001754,2]
[335197485,1723972253826,-500.0,0.0001754,2]
[335197486,1723972253837,-512.46796529,0.0001754,2]
[335197487,1723972253847,-500.0,0.0001754,2]
[335197488,1723972253857,-500.0,0.0001754,2]
[335197489,1723972253867,-500.0,0.0001754,2]
[335197490,1723972253878,-500.0,0.0001754,2]
[335197491,1723972253888,-379.65994937,0.0001754,2]
[335197492,1723972253897,-500.0,0.0001754,2]
[335197493,1723972253907,-511.64760546,0.0001754,2]
[335197494,1723972253917,-500.0,0.0001754,2]
[335197495,1723972253927,-500.0,0.0001754,2]
[335197496,1723972253939,-521.75951476,0.0001754,2]
[335197497,1723972253949,-500.0,0.0001754,2]
[335197498,1723972253959,-508.99906591,0.0001754,2]
[335197499,1723972253970,-508.26415308,0.0001754,2]
[335197500,1723972253979,-891.93,0.0001754,2]
[335197501,1723972253989,-500.0,0.0001754,2]
[335197502,1723972253999,-500.0,0.0001754,2]
[335197503,1723972254008,-500.0,0.0001754,2]
[335197504,1723972254018,-500.0,0.0001754,2]
[335197505,1723972254030,-500.0,0.0001754,2]
[335197506,1723972254040,-500.0,0.0001754,2]
[335197507,1723972254051,-500.0,0.0001754,2]
[335197508,1723972254061,-500.0,0.0001754,2]
[335197509,1723972254072,-668.0,0.0001754,2]
[335197510,1723972254083,-500.0,0.0001754,2]
[335197511,1723972254093,-309.0108856,0.0001754,2]
[335197512,1723972254103,-500.0,0.0001754,2]
[335197513,1723972254113,-500.0,0.0001754,2]
[335197514,1723972254123,-500.0,0.0001754,2]
[335197515,1723972254133,-552.51,0.0001754,2]
[335197516,1723972254145,-432.03554059,0.0001754,2]
[335197517,1723972254155,-553.54699644,0.0001754,2]
[335197518,1723972254164,-500.0,0.0001754,2]
[335197519,1723972254174,-500.0,0.0001754,2]
[335197520,1723972254185,-507.80802781,0.0001754,2]
[335197521,1723972254196,-500.0,0.0001754,2]
[335197522,1723972254206,-500.0,0.0001754,2]
[335197523,1723972254216,-859.38,0.0001754,2]
[335197524,1723972254226,-526.35,0.0001754,2]
[335197525,1723972254236,-151.0,0.0001754,2]
[335197526,1723972254246,-151.0,0.0001754,2]
[335197527,1723972254256,-500.0,0.0001754,2]
[335197528,1723972254267,-252.00719866,0.0001754,2]
[335197529,1723972254278,-500.0,0.0001754,2]
[335197530,1723972254288,-500.0,0.0001754,2]
[335197531,1723972254298,-500.0,0.0001754,2]
[335197532,1723972254307,-500.0,0.0001754,2]
[335197533,1723972254318,-612.12252098,0.0001754,2]
[335197534,1723972254331,-152.69201869,0.0001754,2]
[335197535,1723972254341,-500.0,0.0001754,2]
[335197536,1723972254353,-500.0,0.0001754,2]
[335197537,1723972254363,-500.0,0.0001754,2]
[335197538,1723972254373,-511.96,0.0001754,2]
[335197539,1723972254383,-500.0,0.0001754,2]
[335197540,1723972254393,-500.0,0.0001754,2]
[335197541,1723972254403,-878.09,0.0001754,2]
[335197542,1723972254412,-521.64609183,0.0001754,2]
[335197543,1723972254421,-500.0,0.0001754,2]
[335197544,1723972254431,-500.0,0.0001754,2]
[335197545,1723972254443,-657.28,0.0001754,2]
[335197546,1723972254453,-603.53,0.0001754,2]
[335197547,1723972254463,-500.0,0.0001754,2]
[335197548,1723972254473,-500.0,0.0001754,2]
[335197549,1723972254482,-500.0,0.0001754,2]
[335197550,1723972254492,-500.0,0.0001754,2]
[335197551,1723972254502,-500.0,0.0001754,2]
[335197552,1723972254511,-500.0,0.0001754,2]
[335197553,1723972254521,-500.0,0.0001754,2]
[335197554,1723972254530,-500.0,0.0001754,2]
[335197555,1723972254540,-500.0,0.0001754,2]
[335197556,1723972254550,-500.0,0.0001754,2]
[335197557,1723972254560,-2005.0,0.0001754,10]
[335197558,1723972254569,-500.0,0.0001754,2]
[335197559,1723972254579,-500.0,0.0001754,2]
[335197560,1723972254588,-890.33,0.0001754,2]
[335197561,1723972254598,-500.0,0.0001754,2]
[335197562,1723972254607,-500.0,0.0001754,2]
[335197563,1723972254616,-851.14,0.0001754,2]
[335197564,1723972254626,-812.9,0.0001754,2]
[335197565,1723972254636,-519.3786446,0.0001754,2]
[335197566,1723972254645,-500.0,0.0001754,2]
[335197567,1723972254654,-329.41772764,0.0001754,2]
[335197568,1723972254664,-500.0,0.0001754,2]
[335197569,1723972254673,-500.0,0.0001754,2]
[335197570,1723972254682,-500.0,0.0001754,2]
[335197571,1723972254692,-604.79,0.0001754,2]
[335197572,1723972254701,-500.0,0.0001754,2]
[335197573,1723972254712,-500.0,0.0001754,2]
[335197574,1723972254721,-500.0,0.0001754,2]
[335197575,1723972254731,-228.13925843,0.0001754,2]
[335197576,1723972254740,-886.48,0.0001754,2]
[335197577,1723972254750,-500.0,0.0001754,2]
[335197578,1723972254759,-1651.01,0.0001754,2]
[335197579,1723972254768,-500.0,0.0001754,2]
[335197580,1723972254777,-500.0,0.0001754,2]
[335197581,1723972254786,-500.0,0.0001754,2]
[335197582,1723972254796,-379.23394776,0.0001754,2]
[335197583,1723972254805,-500.0,0.0001754,2]
[335197584,1723972254814,-500.0,0.0001754,2]
[335197585,1723972254824,-500.0,0.0001754,2]
[335197586,1723972254834,-151.0,0.0001754,2]
[335197587,1723972254843,-151.0,0.0001754,2]
[335197588,1723972254852,-283.61733,0.0001754,2]
[335197589,1723972254862,-283.61733,0.0001754,2]
[335197590,1723972254871,-200.0,0.00017573,2]
[335197591,1723972254881,-200.0,0.00017573,2]
[335197592,1723972254890,-500.0,0.00017586,2]
[335197593,1723972254899,-500.0,0.00017586,2]
[335197594,1723972254908,-506.37358524,0.00017587,2]
[335197595,1723972254918,-500.0,0.00017587,2]
[335197596,1723972254928,-500.0,0.00017587,2]
[335197597,1723972254938,-500.0,0.00017597,2]
[335197598,1723972254948,-240.72526053,0.00017598,2]
[335197599,1723972254958,-500.0,0.00017621,2]
[335197600,1723972254968,-500.0,0.00017621,2]
[335197601,1723972254977,-500.0,0.00017621,2]
[335197602,1723972254988,-500.0,0.00017621,2]
[335197603,1723972254998,-500.0,0.00017621,2]
[335197604,1723972255008,-500.0,0.00017621,2]
[335197605,1723972255017,-500.0,0.00017621,2]
[335197606,1723972255027,-500.0,0.00017621,2]
[335197607,1723972255044,-1111.31,0.00017621,2]
[335197608,1723972255056,-627.69,0.00017621,2]
[335197609,1723972255067,-500.0,0.00017621,2]
[335197610,1723972255076,-500.0,0.00017621,2]
[335197611,1723972255086,-500.0,0.00017621,2]
[335197612,1723972255097,-500.0,0.00017621,2]
[335197613,1723972255106,-500.0,0.00017621,2]
[335197614,1723972255117,-500.0,0.00017621,2]
[335197615,1723972255130,-500.0,0.00017621,2]
[335197616,1723972255140,-500.0,0.00017621,2]
[335197617,1723972255150,-550.63,0.00017621,2]
[335197618,1723972255161,-500.0,0.00017621,2]
[335197619,1723972255172,-500.0,0.00017621,2]
[335197620,1723972255182,-500.0,0.00017621,2]
[335197621,1723972255193,-500.0,0.00017621,2]
[335197622,1723972255204,-500.0,0.00017621,2]
[335197623,1723972255367,-571.18,0.00017621,2]
[335197624,1723972255377,-200.0,0.00017621,2]
[335197625,1723972255387,-1361.83,0.00017621,2]
[335197626,1723972255398,-500.0,0.00017621,2]
[335197627,1723972255408,-657.62,0.00017621,2]
[335197628,1723972255418,-500.0,0.00017621,2]
[335197629,1723972255427,-315.23012375,0.00017621,2]
[335197630,1723972255438,-709.41,0.00017621,2]
[335197631,1723972255448,-500.0,0.00017621,2]
[335197632,1723972255458,-500.0,0.00017621,2]
[335197633,1723972255467,-690.3,0.00017621,2]
[335197634,1723972255477,-500.0,0.00017621,2]
[335197635,1723972255486,-779.41,0.00017621,2]
[335197636,1723972255495,-500.0,0.00017621,2]
[335197637,1723972255505,-781.51,0.00017621,2]
[335197638,1723972255515,-570.91,0.00017621,2]
[335197639,1723972255525,-1114.52,0.00017621,2]
[335197640,1723972255534,-500.0,0.00017621,2]
[335197641,1723972255544,-500.0,0.00017621,2]
[335197642,1723972255554,-500.0,0.00017621,2]
[335197643,1723972255565,-500.0,0.00017621,2]
[335197644,1723972255575,-576.34,0.00017621,2]
[335197645,1723972255585,-746.6,0.00017621,2]
[335197646,1723972255595,-500.0,0.00017621,2]
[335197647,1723972255606,-545.45,0.00017621,2]
[335197648,1723972255617,-571.46,0.00017621,2]
[335197649,1723972255628,-500.0,0.00017621,2]
[335197650,1723972255639,-500.0,0.00017621,2]
[335197651,1723972255649,-534.36,0.00017621,2]
[335197652,1723972255659,-828.94,0.00017621,2]
[335197653,1723972255669,-500.0,0.00017621,2]
[335197654,1723972255679,-500.0,0.00017621,2]
[335197655,1723972255690,-500.0,0.00017621,2]
[335197656,1723972255700,-645.15840733,0.00017621,2]
[335197657,1723972255711,-500.0,0.00017621,2]
[335197658,1723972255721,-500.0,0.00017621,2]
[335197659,1723972255732,-500.0,0.00017621,2]
[335197660,1723972255741,-500.0,0.00017621,2]
[335197661,1723972255751,-500.0,0.00017621,2]
[335197662,1723972255762,-500.0,0.00017621,2]
[335197663,1723972255772,-745.97,0.00017621,2]
[335197664,1723972255782,-500.0,0.00017621,2]
[335197665,1723972255792,-500.0,0.00017621,2]
[335197666,1723972255802,-500.0,0.00017621,2]
[335197667,1723972255811,-500.0,0.00017621,2]
[335197668,1723972255826,-500.0,0.00017621,2]
[335197669,1723972255836,-500.0,0.00017621,2]
[335197670,1723972255849,-552.04,0.00017621,2]
[335197671,1723972255859,-500.0,0.00017621,2]
[335197672,1723972255870,-500.0,0.00017621,2]
[335197673,1723972255880,-500.0,0.00017621,2]
[335197674,1723972255890,-500.0,0.00017621,2]
[335197675,1723972255901,-500.0,0.00017621,2]
[335197676,1723972255912,-500.0,0.00017621,2]
[335197677,1723972255921,-500.0,0.00017621,2]
[335197678,1723972255932,-596.88,0.00017621,2]
[335197679,1723972255944,-500.0,0.00017621,2]
[335197680,1723972255954,-500.0,0.00017621,2]
[335197681,1723972255964,-500.0,0.00017621,2]
[335197682,1723972255975,-500.0,0.00017621,2]
[335197683,1723972255985,-666.21,0.00017621,2]
[335197684,1723972255996,-908.55,0.00017621,2]
[335197685,1723972256006,-1000.0,0.00017621,2]
[335197686,1723972256016,-500.0,0.00017621,2]
[335197687,1723972256026,-500.0,0.00017621,2]
[335197688,1723972256038,-500.0,0.00017621,2]
[335197689,1723972256048,-500.0,0.00017621,2]
[335197690,1723972256058,-503.92445131,0.00017621,2]
[335197691,1723972256071,-516.15,0.00017621,2]
[335197692,1723972256081,-505.17290861,0.00017621,2]
[335197693,1723972256092,-500.0,0.00017621,2]
[335197694,1723972256103,-500.0,0.00017621,2]
[335197695,1723972256114,-809.29,0.00017621,2]
[335197696,1723972256125,-260.66261459,0.00017621,2]
[335197697,1723972256136,-979.6,0.00017621,2]
[335197698,1723972256146,-500.0,0.00017621,2]
[335197699,1723972256156,-500.0,0.00017621,2]
[335197700,1723972256166,-500.0,0.00017621,2]
[335197701,1723972256177,-500.0,0.00017621,2]
[335197702,1723972256187,-543.15,0.00017621,2]
[335197703,1723972256197,-500.0,0.00017621,2]
[335197704,1723972256206,-500.0,0.00017621,2]
[335197705,1723972256217,-500.0,0.00017621,2]
[335197706,1723972256226,-500.0,0.00017621,2]
[335197707,1723972256236,-502.76378911,0.00017621,2]
[335197708,1723972256245,-500.0,0.00017621,2]
[335197709,1723972256255,-711.8,0.00017621,2]
[335197710,1723972256264,-500.0,0.00017621,2]
[335197711,1723972256274,-500.0,0.00017621,2]
[335197712,1723972256284,-504.61544333,0.00017621,2]
[335197713,1723972256293,-500.0,0.00017621,2]
[335197714,1723972256303,-500.0,0.00017621,2]
[335197715,1723972256313,-151.0,0.00017621,2]
[335197716,1723972256323,-500.0,0.00017621,2]
[335197717,1723972256333,-151.0,0.00017621,2]
[335197718,1723972256344,-514.47,0.00017621,2]
[335197719,1723972256354,-500.0,0.00017621,2]
[335197720,1723972256364,-518.94139326,0.00017621,2]
[335197721,1723972256374,-596.44969579,0.00017621,2]
[335197722,1723972256383,-500.0,0.00017621,2]
[335197723,1723972256393,-500.0,0.00017621,2]
[335197724,1723972256403,-712.42,0.00017621,2]
[335197725,1723972256413,-500.0,0.00017621,2]
[335197726,1723972256422,-500.0,0.00017621,2]
[335197727,1723972256432,-500.0,0.00017621,2]
[335197728,1723972256442,-500.0,0.00017621,2]
[335197729,1723972256452,-1455.28,0.00017621,2]
[335197730,1723972256461,-500.0,0.00017621,2]
[335197731,1723972256471,-500.0,0.00017621,2]
[335197732,1723972256480,-500.0,0.00017621,2]
[335197733,1723972256490,-825.96,0.00017621,2]
[335197734,1723972256499,-517.2,0.00017621,2]
[335197735,1723972256508,-644.77,0.00017621,2]
[335197736,1723972256518,-500.0,0.00017621,2]
[335197737,1723972256528,-500.0,0.00017621,2]
[335197738,1723972256537,-3340.71,0.00017621,2]
[335197739,1723972256546,-500.0,0.00017621,2]
[335197740,1723972256555,-683.24,0.00017621,2]
[335197741,1723972256565,-500.0,0.00017621,2]
[335197742,1723972256575,-509.1367831,0.00017621,2]
[335197743,1723972256585,-500.0,0.00017621,2]
[335197744,1723972256594,-702.81,0.00017621,2]
[335197745,1723972256604,-506.50095845,0.00017621,2]
[335197746,1723972256613,-957.5,0.00017621,2]
[335197747,1723972256623,-500.0,0.00017621,2]
[335197748,1723972256632,-511.27237691,0.00017621,2]
[335197749,1723972256642,-500.0,0.00017621,2]
[335197750,1723972256652,-2320.16,0.00017621,2]
[335197751,1723972256661,-500.0,0.00017621,2]
[335197752,1723972256673,-1234.36,0.00017621,2]
[335197753,1723972256683,-500.0,0.00017621,2]
[335197754,1723972256694,-500.0,0.00017621,2]
[335197755,1723972256704,-1016.9,0.00017621,2]
[335197756,1723972256714,-500.0,0.00017621,2]
[335197757,1723972256727,-500.0,0.00017621,2]
[335197758,1723972256738,-283.61733,0.00017621,2]
[335197759,1723972256749,-500.0,0.00017621,2]
[335197760,1723972256759,-500.0,0.00017621,2]
[335197761,1723972256770,-500.0,0.00017621,2]
[335197762,1723972256780,-500.0,0.00017621,2]
[335197763,1723972256789,-283.61733,0.00017621,2]
[335197764,1723972256799,-524.89954119,0.00017621,2]
[335197765,1723972256808,-500.0,0.00017621,2]
[335197766,1723972256819,-679.1,0.00017621,2]
[335197767,1723972256828,-500.0,0.00017621,2]
[335197768,1723972256838,-730.8,0.00017621,2]
[335197769,1723972256847,-950.77,0.00017621,2]
[335197770,1723972256856,-476.9657291,0.00017621,2]
[335197771,1723972256866,-500.0,0.00017621,2]
[335197772,1723972256875,-500.0,0.00017621,2]
[335197773,1723972256885,-512.66634212,0.00017621,2]
[335197774,1723972256895,-372.84039131,0.00017621,2]
[335197775,1723972256905,-500.0,0.00017621,2]
[335197776,1723972256914,-651.53,0.00017621,2]
[335197777,1723972256923,-500.0,0.00017621,2]
[335197778,1723972256933,-500.0,0.00017621,2]
[335197779,1723972256942,-1053.09,0.00017621,2]
[335197780,1723972256951,-500.0,0.00017621,2]
[335197781,1723972256960,-500.0,0.00017621,2]
[335197782,1723972256970,-519.06,0.00017621,2]
[335197783,1723972256981,-500.0,0.00017621,2]
[335197784,1723972256992,-500.0,0.00017621,2]
[335197785,1723972257002,-500.0,0.00017621,2]
[335197786,1723972257012,-1056.73,0.00017621,2]
[335197787,1723972257021,-500.0,0.00017621,2]
[335197788,1723972257031,-693.92,0.00017621,2]
[335197789,1723972257040,-500.0,0.00017621,2]
[335197790,1723972257050,-500.0,0.00017621,2]
[335197791,1723972257060,-501.50201965,0.00017621,2]
[335197792,1723972257069,-500.0,0.00017621,2]
[335197793,1723972257079,-500.0,0.00017621,2]
[335197794,1723972257088,-2211.05,0.00017621,2]
[335197795,1723972257097,-500.0,0.00017621,2]
[335197796,1723972257107,-500.0,0.00017621,2]
[335197797,1723972257117,-907.0,0.00017621,2]
[335197798,1723972257131,-500.0,0.00017621,2]
[335197799,1723972257140,-500.0,0.00017621,2]
[335197800,1723972257149,-500.0,0.00017621,2]
[335197801,1723972257168,-501.542352,0.00017621,2]
[335197802,1723972257180,-726.36,0.00017621,2]
[335197803,1723972257197,-500.0,0.00017621,2]
[335197804,1723972257210,-510.4719116,0.00017621,2]
[335197805,1723972257220,-509.0240187,0.00017621,2]
[335197806,1723972257231,-500.0,0.00017621,2]
[335197807,1723972257241,-500.0,0.00017621,2]
[335197808,1723972257250,-780.01,0.00017621,2]
[335197809,1723972257260,-785.81,0.00017621,2]
[335197810,1723972257270,-1109.69,0.00017621,2]
[335197811,1723972257280,-500.0,0.00017621,2]
[335197812,1723972257290,-510.04064096,0.00017621,2]
[335197813,1723972257299,-500.0,0.00017621,2]
[335197814,1723972257310,-500.0,0.00017621,2]
[335197815,1723972257320,-500.0,0.00017621,2]
[335197816,1723972257329,-500.0,0.00017621,2]
[335197817,1723972257340,-153.0,0.00017753,2]
[335197818,1723972257349,-153.0,0.00017753,2]
[335197819,1723972257359,-153.0,0.00017753,2]
[335197820,1723972257369,-153.0,0.00017753,2]
[335197821,1723972257379,-477.77410613,0.00017772,2]
[335197822,1723972257389,-561.37,0.00017807,2]
[335197823,1723972257398,-505.55,0.00017807,2]
[335197824,1723972257408,-2416.37,0.00017807,2]
[335197825,1723972257418,-762.7,0.00017807,2]
[335197826,1723972257428,-756.06,0.00017807,2]
[335197827,1723972257440,-803.37,0.00017807,2]
[335197828,1723972257450,-815.41,0.00017807,2]
[335197829,1723972257460,-500.0,0.00017807,2]
[335197830,1723972257470,-500.0,0.00017808,2]
[335197831,1723972257480,-500.0,0.00017808,2]
[335197832,1723972257490,-1177.92,0.00017808,2]
[335197833,1723972257500,-500.0,0.00017808,2]
[335197834,1723972257510,-1232.66,0.00017808,2]
[335197835,1723972257520,-1382.39,0.00017808,2]
[335197836,1723972257529,-500.0,0.00017808,2]
[335197837,1723972257539,-1150.83,0.00017808,2]
[335197838,1723972257549,-759.23,0.00017808,2]
[335197839,1723972257558,-4733.68,0.00017808,2]
[335197840,1723972257569,-1343.44,0.00017808,2]
[335197841,1723972257579,-557.79,0.00017808,2]
[335197842,1723972257589,-1110.9,0.00017808,2]
[335197843,1723972257598,-500.0,0.00017808,2]
[335197844,1723972257609,-500.0,0.00017808,2]
[335197845,1723972257618,-500.0,0.00017808,2]
[335197846,1723972257628,-1346.94,0.00017808,2]
[335197847,1723972257638,-1824.26,0.00017808,2]
[335197848,1723972257647,-576.65,0.00017808,2]
[335197849,1723972257657,-500.0,0.00017808,2]
[335197850,1723972257667,-550.17,0.00017808,2]
[335197851,1723972257677,-500.0,0.00017808,2]
[335197852,1723972257686,-1066.33,0.00017808,2]
[335197853,1723972257696,-500.0,0.00017808,2]
[335197854,1723972257706,-6489.01,0.00017808,2]
[335197855,1723972257717,-976.12,0.00017808,2]
[335197856,1723972257727,-877.17,0.00017808,2]
[335197857,1723972257736,-500.0,0.00017808,2]
[335197858,1723972257746,-644.58,0.00017808,2]
[335197859,1723972257756,-500.0,0.00017808,2]
[335197860,1723972257766,-1110.33,0.00017808,2]
[335197861,1723972257776,-500.0,0.00017808,2]
[335197862,1723972257786,-500.0,0.00017808,2]
[335197863,1723972257795,-907.09,0.00017808,2]
[335197864,1723972257804,-500.0,0.00017808,2]
[335197865,1723972257814,-724.89,0.00017808,2]
[335197866,1723972257824,-713.9,0.00017808,2]
[335197867,1723972257834,-500.0,0.00017808,2]
[335197868,1723972257844,-500.0,0.00017808,2]
[335197869,1723972257854,-716.69,0.00017808,2]
[335197870,1723972257864,-500.0,0.00017808,2]
[335197871,1723972257874,-1868.57,0.00017808,2]
[335197872,1723972257884,-500.0,0.00017808,2]
[335197873,1723972257893,-500.0,0.00017808,2]
[335197874,1723972257903,-692.16,0.00017808,2]
[335197875,1723972257913,-820.93,0.00017808,2]
[335197876,1723972257922,-1308.34,0.00017808,2]
[335197877,1723972257932,-500.0,0.00017808,2]
[335197878,1723972257943,-500.0,0.00017812,2]
[335197879,1723972257953,-500.0,0.00017813,2]
[335197880,1723972257963,-500.0,0.00017813,2]
[335197881,1723972257972,-505.16786915,0.00017813,2]
[335197882,1723972257981,-500.0,0.00017813,2]
[335197883,1723972257991,-500.0,0.00017813,2]
[335197884,1723972258004,-555.96616486,0.00017813,2]
[335197885,1723972258014,-507.9909828,0.00017813,2]
[335197886,1723972258024,-500.0,0.00017813,2]
[335197887,1723972258034,-174.00941654,0.00017813,2]
[335197888,1723972258044,-505.50000001,0.00017813,2]
[335197889,1723972258054,-500.0,0.00017813,2]
[335197890,1723972258064,-170.13990363,0.00017813,2]
[335197891,1723972258074,-500.0,0.00017813,2]
[335197892,1723972258083,-502.86987395,0.00017813,2]
[335197893,1723972258093,-500.0,0.00017813,2]
[335197894,1723972258103,-500.0,0.00017813,2]
[335197895,1723972258113,-505.43564784,0.00017813,2]
[335197896,1723972258285,-507.84303351,0.00017813,2]
[335197897,1723972258295,-500.0,0.00017813,2]
[335197898,1723972258305,-500.0,0.00017813,2]
[335197899,1723972258316,-500.0,0.00017813,2]
[335197900,1723972258326,-505.25,0.00017813,2]
[335197901,1723972258336,-500.0,0.00017813,2]
[335197902,1723972258346,-500.0,0.00017813,2]
[335197903,1723972258356,-962.99,0.00017813,2]
[335197904,1723972258366,-500.0,0.00017813,2]
[335197905,1723972258376,-500.0,0.00017813,2]
[335197906,1723972258387,-500.0,0.00017813,2]
[335197907,1723972258396,-500.0,0.00017813,2]
[335197908,1723972258407,-500.0,0.00017813,2]
[335197909,1723972258417,-500.0,0.00017813,2]
[335197910,1723972258427,-500.0,0.00017813,2]
[335197911,1723972258437,-500.0,0.00017813,2]
[335197912,1723972258447,-500.0,0.00017813,2]
[335197913,1723972258457,-891.93,0.00017813,2]
[335197914,1723972258468,-348.75863628,0.00017813,2]
[335197915,1723972258478,-500.0,0.00017813,2]
[335197916,1723972258488,-500.0,0.00017813,2]
[335197917,1723972258498,-500.0,0.00017813,2]
[335197918,1723972258509,-500.0,0.00017813,2]
[335197919,1723972258521,-500.0,0.00017813,2]
[335197920,1723972258532,-500.0,0.00017813,2]
[335197921,1723972258542,-691.19,0.00017813,2]
[335197922,1723972258552,-623.1,0.00017813,2]
[335197923,1723972258564,-358.63815817,0.00017813,2]
[335197924,1723972258574,-500.0,0.00017813,2]
[335197925,1723972258584,-500.0,0.00017813,2]
[335197926,1723972258595,-668.0,0.00017813,2]
[335197927,1723972258605,-500.0,0.00017813,2]
[335197928,1723972258614,-500.0,0.00017813,2]
[335197929,1723972258624,-500.0,0.00017813,2]
[335197930,1723972258632,-500.0,0.00017813,2]
[335197931,1723972258642,-500.0,0.00017813,2]
[335197932,1723972258651,-500.0,0.00017813,2]
[335197933,1723972258660,-571.73,0.00017813,2]
[335197934,1723972258669,-552.51,0.00017813,2]
[335197935,1723972258680,-500.0,0.00017813,2]
[335197936,1723972258690,-500.0,0.00017813,2]
[335197937,1723972258700,-733.85,0.00017813,2]
[335197938,1723972258711,-1120.89,0.00017813,2]
[335197939,1723972258722,-500.0,0.00017813,2]
[335197940,1723972258732,-500.0,0.00017813,2]
[335197941,1723972258743,-500.0,0.00017813,2]
[335197942,1723972258753,-535.61701437,0.00017813,2]
[335197943,1723972258766,-500.0,0.00017813,2]
[335197944,1723972258776,-500.0,0.00017813,2]
[335197945,1723972258787,-859.38,0.00017813,2]
[335197946,1723972258798,-526.35,0.00017813,2]
[335197947,1723972258810,-500.0,0.00017813,2]
[335197948,1723972258822,-743.99,0.00017813,2]